bitfinex/quotes_SOLUSD_20240702
["timestamp","ask_amount","ask_price","bid_price","bid_amount"]
[1719941465298,15.22,148.8,148.79,23.5226]
[1719941466002,15.22,148.8,148.76,16.8045]
[1719941466208,15.22,148.78,148.76,16.8045]
[1719941466389,15.22,148.77,148.76,23.5267]
[1719941466583,15.22,148.77,148.75,6.7226]
[1719941466904,15.22,148.76,148.74,6.7229]
[1719941467082,15.22,148.75,148.73,23.5314]
[1719941467278,15.22,148.74,148.73,23.5314]
[1719941467800,6.7215,148.78,148.73,23.5314]
[1719941468200,6.7215,148.78,148.74,6.7231]
[1719941469387,6.7219,148.77,148.73,23.5315]
[1719941469597,6.7239,148.73,148.7,5.49032645]
[1719941469904,6.7232,148.74,148.69,6.7251]
[1719941470295,6.7236,148.73,148.69,6.7251]
[1719941470493,30.45,148.76,148.67,16.815]
[1719941470686,20.0,148.75,148.67,16.815]
[1719941471302,6.7236,148.73,148.69,23.5382]
[1719941471617,6.7232,148.74,148.69,23.5382]
[1719941471910,30.45,148.74,148.69,16.813]
[1719941472103,30.45,148.74,148.71,6.7244]
[1719941472608,37.1732,148.74,148.7,6.7248]
[1719941472997,37.1732,148.74,148.69,23.5382]
[1719941473911,26.7227,148.75,148.7,6.7247]
[1719941474105,30.45,148.74,148.7,6.7247]
[1719941475001,20.0,148.75,148.72,6.7238]
[1719941475315,57.1719,148.77,148.73,6.7235]
[1719941475891,30.45,148.77,148.74,6.7229]
[1719941476090,22.45314293,148.78,148.75,6.7226]
[1719941476298,13.0741,148.79,148.75,6.7226]
[1719941476691,44.16598283,148.8,148.76,6.7221]
[1719941476889,6.99548283,148.8,148.75,16.8063]
[1719941477120,6.7201,148.81,148.77,6.7217]
[1719941477615,6.7195,148.82,148.78,6.7212]
[1719941477911,13.71334704,148.83,148.79,6.7207]
[1719941478114,46.4141,148.86,148.79,16.8017]
[1719941478616,46.4141,148.86,148.81,16.7993]
[1719941478815,6.7177,148.86,148.81,23.5188]
[1719941479003,6.7177,148.86,148.81,16.7993]
[1719941479392,6.7177,148.86,148.81,23.5192]
[1719941479601,6.7183,148.85,148.81,23.5192]
[1719941480516,6.7178,148.86,148.82,6.7194]
[1719941480897,0.84884,148.88,148.77,5.8431]
[1719941480898,0.84884,148.88,148.83,16.797]
[1719941481314,0.84884,148.88,148.84,6.7183]
[1719941481516,0.84884,148.88,148.87,6.7172]
[1719941486915,0.84884,148.88,148.87,8.06023659]
[1719941488398,0.84884,148.88,148.87,6.7172]
[1719941503436,0.84884,148.88,148.87,8.06017416]
[1719941503823,26.7134,148.96,148.92,6.7149]
[1719941504617,6.7137,148.95,148.92,1.34284114]
[1719941505022,6.7137,148.95,148.91,23.5037]
[1719941505220,20.0,148.96,148.88,16.7911]
[1719941505436,6.7146,148.93,148.89,6.716]
[1719941505836,6.7161,148.9,148.86,6.7173]
[1719941506037,6.7152,148.92,148.88,6.7168]
[1719941508741,6.7152,148.92,148.87,16.793]
[1719941508742,21.7835,148.92,148.87,16.793]
[1719941509042,6.7159,148.9,148.87,16.793]
[1719941509348,6.7164,148.89,148.85,6.718]
[1719941509519,6.716,148.9,148.86,6.7176]
[1719941509718,28.4988,148.92,148.87,6.7168]
[1719941509925,21.7835,148.92,148.82,50.1934]
[1719941510322,21.7835,148.92,148.89,6.7163]
[1719941512637,21.7835,148.92,148.9,6.7157]
[1719941513836,15.4425,148.92,148.9,6.7157]
[1719941514144,13.70906944,148.95,148.91,6.7154]
[1719941514326,26.7142,148.94,148.9,23.5054]
[1719941515029,20.0,148.94,148.91,6.7154]
[1719941515326,28.9849,148.96,148.92,6.7149]
[1719941515637,6.7136,148.95,148.91,6.7153]
[1719941516740,28.9846,148.96,148.92,6.7148]
[1719941517243,6.7138,148.95,148.91,6.7154]
[1719941523368,6.7141,148.94,148.91,6.7154]
[1719941523849,6.7141,148.94,148.9,23.5053]
[1719941525350,22.2714,148.96,148.9,16.7896]
[1719941525543,6.7136,148.95,148.91,8.05801816]
[1719941525726,6.7136,148.95,148.92,6.7149]
[1719941527237,6.7136,148.95,148.91,6.7153]
[1719941527556,6.7141,148.94,148.91,6.7153]
[1719941527754,15.19,148.93,148.91,6.7153]
[1719941529261,15.19,148.93,148.9,23.5054]
[1719941529757,21.9045,148.93,148.9,23.5054]
[1719941530445,15.19,148.93,148.9,23.5054]
[1719941531753,15.19,148.92,148.89,6.7161]
[1719941531958,15.19,148.9,148.87,23.5092]
[1719941532261,15.19,148.89,148.87,23.5092]
[1719941532761,15.19,148.89,148.87,23.5094]
[1719941534560,15.19,148.88,148.87,23.5094]
[1719941535748,6.7147,148.93,148.88,6.7168]
[1719941535940,15.19,148.9,148.89,6.7161]
[1719941536146,15.19,148.9,148.88,6.7166]
[1719941536348,15.19,148.89,148.87,23.5093]
[1719941536759,15.19,148.88,148.87,23.5093]
[1719941537256,15.19,148.89,148.87,23.5093]
[1719941537762,15.19,148.89,148.88,6.7168]
[1719941540066,6.7151,148.92,148.88,6.7168]
[1719941540260,15.19,148.89,148.88,6.7168]
[1719941540457,15.19,148.9,148.88,6.7168]
[1719941542550,15.19,148.91,148.89,6.7163]
[1719941543343,15.19,148.9,148.89,6.7163]
[1719941544356,15.19,148.9,148.85,48.7794]
[1719941544357,6.7165,148.89,148.86,6.7176]
[1719941544556,15.19,148.87,148.84,16.7958]
[1719941544758,60.76,148.89,148.81,16.799]
[1719941545066,15.19,148.83,148.82,6.7192]
[1719941547141,15.19,148.83,148.8,6.7203]
[1719941547347,15.19,148.83,148.73,100.0]
[1719941547348,15.19,148.81,148.78,16.8025]
[1719941547549,15.19,148.79,148.78,16.8025]
[1719941547749,30.43,148.83,148.78,16.8025]
[1719941548657,6.7195,148.82,148.78,23.5238]
[1719941548854,30.43,148.83,148.78,16.8025]
[1719941549057,30.43,148.83,148.8,6.72]
[1719941549462,6.7185,148.85,148.81,6.7198]
[1719941549668,20.0,148.84,148.8,16.8002]
[1719941550268,28.7846,148.86,148.82,6.7195]
[1719941550269,20.0,148.85,148.82,6.7195]
[1719941550466,20.0,148.85,148.8,16.8002]
[1719941550467,20.0,148.85,148.81,6.7198]
[1719941550774,26.7182,148.85,148.81,6.7198]
[1719941551584,6.7187,148.84,148.8,16.8002]
[1719941552073,6.7187,148.84,148.8,23.5205]
[1719941552658,26.7183,148.85,148.81,6.7199]
[1719941555577,6.7186,148.84,148.8,23.5204]
[1719941557073,6.7193,148.83,148.79,6.7207]
[1719941559071,6.7188,148.84,148.8,6.7203]
[1719941559277,26.7183,148.85,148.81,6.7199]
[1719941559967,20.0,148.85,148.79,16.8019]
[1719941560357,6.7196,148.82,148.79,16.8019]
[1719941561567,6.7196,148.82,148.79,23.5227]
[1719941561779,6.7191,148.83,148.79,23.5227]
[1719941561958,6.7191,148.83,148.8,6.7204]
[1719941562158,6.7191,148.83,148.79,23.5226]
[1719941562679,6.7195,148.82,148.79,23.5226]
[1719941562881,6.7195,148.82,148.79,16.8019]
[1719941564279,6.7192,148.83,148.79,23.5227]
[1719941567771,15.21,148.8,148.79,23.5227]
[1719941568777,20.0,148.85,148.79,16.8019]
[1719941569102,15.21,148.83,148.82,6.7194]
[1719941569463,6.7178,148.86,148.82,6.7194]
[1719941569464,15.21,148.84,148.82,6.7194]
[1719941570072,15.21,148.84,148.81,6.7198]
[1719941570305,6.96963874,148.88,148.82,16.7986]
[1719941570461,15.21,148.85,148.82,16.7986]
[1719941571386,15.21,148.85,148.83,6.719]
[1719941571894,15.21,148.86,148.84,6.7185]
[1719941572475,15.21,148.86,148.83,6.7189]
[1719941573073,13.68653874,148.88,148.84,6.7185]
[1719941573283,15.21,148.86,148.85,6.7181]
[1719941573470,15.21,148.87,148.85,6.7181]
[1719941574074,6.96821736,148.91,148.88,6.7166]
[1719941574277,6.96821736,148.91,148.86,16.7941]
[1719941574278,15.21,148.9,148.87,6.7171]
[1719941574506,6.0774,148.94,148.91,6.715]
[1719941574668,12.7917,148.94,148.9,6.7157]
[1719941574864,15.21,148.92,148.9,23.5047]
[1719941575369,15.21,148.91,148.87,16.7922]
[1719941575574,15.21,148.91,148.88,6.7165]
[1719941576095,15.21,148.91,148.89,6.7163]
[1719941577198,12.7916,148.94,148.9,6.7159]
[1719941577389,15.21,148.92,148.89,23.5066]
[1719941578496,15.21,148.91,148.89,23.5066]
[1719941580795,15.21,148.91,148.86,16.7941]
[1719941581101,15.21,148.9,148.87,6.7169]
[1719941581790,15.21,148.89,148.87,6.7169]
[1719941582699,15.21,148.9,148.87,6.7169]
[1719941583001,6.7156,148.91,148.87,6.7169]
[1719941583170,6.7156,148.91,148.88,6.7167]
[1719941583171,15.21,148.9,148.88,6.7167]
[1719941588180,15.21,148.9,148.89,6.7163]
[1719941588370,15.21,148.91,148.89,6.7163]
[1719941588566,15.21,148.92,148.89,6.7163]
[1719941588770,15.21,148.91,148.89,6.7163]
[1719941589492,15.21,148.94,148.91,16.7881]
[1719941589689,15.21,148.94,148.92,6.7148]
[1719941590603,13.53934655,148.98,148.94,6.7141]
[1719941590780,15.21,148.96,148.94,6.7141]
[1719941591177,15.21,148.96,148.93,23.5005]
[1719941591489,15.21,148.95,148.93,16.7862]
[1719941593587,15.21,148.95,148.93,23.5006]
[1719941593792,22.6968,148.97,148.93,23.5006]
[1719941593978,15.21,148.96,148.93,23.5006]
[1719941595283,15.21,148.96,148.9,16.7888]
[1719941595492,15.21,148.94,148.9,16.7888]
[1719941595693,15.21,148.94,148.91,6.7153]
[1719941596212,15.21,148.95,148.92,6.7149]
[1719941596511,21.9236,148.95,148.92,6.7149]
[1719941597781,15.21,148.95,148.92,6.7149]
[1719941598878,6.7133,148.96,148.88,6.7166]
[1719941598879,6.715,148.92,148.88,6.7166]
[1719941599079,15.21,148.91,148.88,6.7166]
[1719941599511,15.21,148.89,148.86,6.7176]
[1719941599696,15.21,148.88,148.86,6.7176]
[1719941600197,15.21,148.87,148.85,6.718]
[1719941600497,15.21,148.87,148.86,6.7177]
[1719941601202,15.21,148.87,148.85,6.7181]
[1719941602781,15.21,148.87,148.86,6.7177]
[1719941602999,13.38230579,148.92,148.88,6.7167]
[1719941603193,15.21,148.89,148.88,6.7167]
[1719941603392,15.21,148.89,148.87,23.5099]
[1719941603697,15.21,148.88,148.87,23.5099]
[1719941615111,15.21,148.88,148.87,16.7928]
[1719941620428,6.46220579,148.92,148.89,16.7908]
[1719941620598,15.21,148.95,148.94,6.7141]
[1719941621399,15.21,148.96,148.94,6.7141]
[1719941622817,6.7124,148.98,148.94,6.7141]
[1719941623016,15.21,148.96,148.94,6.7141]
[1719941623318,15.21,148.96,148.93,23.5007]
[1719941623818,35.21,148.97,148.94,6.714]
[1719941625213,41.9227,148.97,148.93,23.5006]
[1719941625515,15.21,148.96,148.93,23.5006]
[1719941625695,29.2089,148.99,148.95,6.7133]
[1719941625897,15.21,148.97,148.95,6.7133]
[1719941626103,15.21,148.98,148.95,6.7133]
[1719941626400,15.21,148.97,148.94,6.7139]
[1719941627024,15.21,148.97,148.95,6.7136]
[1719941627714,15.21,148.97,148.94,6.7139]
[1719941629204,29.209,148.99,148.95,6.7136]
[1719941629403,15.21,148.97,148.95,6.7136]
[1719941630003,15.21,148.97,148.94,6.7139]
[1719941632420,15.21,148.96,148.93,23.5006]
[1719941632718,6.7123,148.98,148.94,6.7139]
[1719941632918,15.21,148.97,148.94,6.7139]
[1719941633212,15.21,148.97,148.95,6.7136]
[1719941633424,15.21,148.98,148.96,6.7132]
[1719941633801,22.78074,149.03,148.97,6.7126]
[1719941634000,29.49084,149.03,148.99,6.7117]
[1719941634205,15.21,149.0,148.98,6.7121]
[1719941634406,29.49084,149.03,148.99,6.7117]
[1719941634595,0.84884,149.03,149.01,6.7109]
[1719941634918,0.84884,149.03,149.0,6.7112]
[1719941635501,16.05884,149.03,149.0,6.7112]
[1719941636708,15.21,149.02,148.99,23.491]
[1719941640221,0.84884,149.03,148.99,16.7794]
[1719941640522,16.05884,149.03,149.01,6.7106]
[1719941640914,16.05884,149.03,149.0,6.7112]
[1719941642122,0.84884,149.03,149.0,6.7113]
[1719941642357,16.05884,149.03,149.0,6.7113]
[1719941642529,15.21,149.02,149.0,6.7113]
[1719941642708,15.21,149.02,148.99,23.4911]
[1719941643324,15.21,149.02,149.0,6.711]
[1719941643522,16.05884,149.03,149.0,6.711]
[1719941644421,15.21,149.02,149.0,6.711]
[1719941644727,15.21,149.02,148.99,23.4912]
[1719941646627,15.21,149.02,149.0,6.7112]
[1719941647127,16.05884,149.03,149.0,6.7112]
[1719941647330,0.84884,149.03,149.02,6.7105]
[1719941647536,0.84884,149.03,149.01,23.4876]
[1719941647726,0.84884,149.03,149.02,6.7105]
[1719941648023,0.84884,149.03,149.01,16.7771]
[1719941648234,0.84884,149.03,149.02,6.7105]
[1719941650415,16.05884,149.03,149.01,23.4879]
[1719941650719,0.84884,149.03,149.02,6.7105]
[1719941651631,0.84884,149.03,149.02,23.26233419]
[1719941651835,0.84884,149.03,149.02,21.9205]
[1719941653032,0.84884,149.03,149.02,6.7105]
[1719941653345,0.84884,149.03,149.02,21.9205]
[1719941658936,0.84884,149.03,149.02,6.7105]
[1719941659146,0.84884,149.03,149.01,23.4879]
[1719941659443,16.05884,149.03,149.01,16.7771]
[1719941659621,16.05884,149.03,149.01,23.488]
[1719941660227,16.05884,149.03,149.02,6.7105]
[1719941661650,0.84884,149.03,149.02,6.7105]
[1719941663638,0.84884,149.03,149.01,16.7771]
[1719941663845,16.05884,149.03,149.01,16.7771]
[1719941664241,16.05884,149.03,149.01,23.4876]
[1719941664443,15.21,149.02,149.01,23.4876]
[1719941664918,15.21,149.02,148.98,15.21]
[1719941664919,15.21,149.02,149.0,6.7112]
[1719941665124,15.21,149.01,148.99,6.7116]
[1719941665440,15.21,149.0,148.98,23.4918]
[1719941666138,15.21,149.0,148.99,6.7118]
[1719941667744,15.21,149.0,148.98,23.4919]
[1719941668537,15.21,148.99,148.97,6.7126]
[1719941668731,28.3859,149.01,148.97,6.7126]
[1719941668732,15.21,148.98,148.97,6.7126]
[1719941669042,15.21,148.98,148.95,23.4966]
[1719941669344,15.21,148.96,148.95,23.4966]
[1719941669545,15.21,148.96,148.95,16.7831]
[1719941669745,15.21,148.96,148.95,23.4967]
[1719941672751,15.21,148.96,148.95,16.7831]
[1719941674954,15.21,148.96,148.95,23.4967]
[1719941675633,15.21,148.96,148.95,16.7831]
[1719941680255,15.21,148.96,148.94,6.7139]
[1719941681063,15.21,148.96,148.95,6.7136]
[1719941681742,15.21,148.96,148.94,23.4989]
[1719941683260,21.9233,148.96,148.92,6.7149]
[1719941683443,15.21,148.96,148.91,16.7885]
[1719941683634,15.21,148.95,148.93,6.7145]
[1719941684055,41.8649,149.01,148.94,6.714]
[1719941684056,15.21,148.96,148.94,6.714]
[1719941684255,15.21,148.96,148.95,6.7136]
[1719941685140,15.21,148.96,148.94,6.7139]
[1719941685946,21.9228,148.97,148.93,23.5004]
[1719941686337,15.21,148.96,148.93,23.5004]
[1719941689859,15.21,148.96,148.94,6.7141]
[1719941690052,15.21,148.97,148.93,16.786]
[1719941690269,15.21,148.97,148.95,6.7134]
[1719941690764,15.21,148.98,148.95,6.7134]
[1719941690947,15.21,148.98,148.96,6.7131]
[1719941691344,15.21,148.98,148.95,16.7839]
[1719941691548,15.21,148.99,148.96,6.713]
[1719941691949,21.9218,148.99,148.95,23.4975]
[1719941692548,15.21,148.98,148.95,23.4975]
[1719941693644,21.9218,148.99,148.95,23.4975]
[1719941694347,21.9218,148.99,148.96,6.7132]
[1719941694542,21.6749,149.01,148.97,6.7127]
[1719941694742,15.21,149.0,148.97,16.7811]
[1719941695143,6.7106,149.02,148.97,16.7811]
[1719941695350,15.21,149.0,148.97,16.7811]
[1719941695550,15.21,149.0,148.97,23.4936]
[1719941697346,6.713,148.97,148.93,6.7144]
[1719941697559,6.713,148.97,148.91,16.7839]
[1719941697560,15.21,148.95,148.92,23.5017]
[1719941697959,15.21,148.94,148.92,23.5017]
[1719941699158,6.7132,148.96,148.92,23.5017]
[1719941699666,15.21,148.95,148.92,23.5017]
[1719941700351,15.21,148.94,148.92,16.7872]
[1719941700552,6.7138,148.95,148.92,16.7872]
[1719941700553,15.21,148.93,148.92,16.7872]
[1719941702479,15.21,148.93,148.92,23.5022]
[1719941704761,6.7124,148.98,148.94,6.7137]
[1719941704966,15.21,148.96,148.94,6.7137]
[1719941705284,8.02916313,149.03,148.95,23.4977]
[1719941705571,0.84884,149.03,149.02,6.7105]
[1719941706288,0.84884,149.03,149.01,23.4877]
[1719941708575,0.84884,149.03,148.99,6.7117]
[1719941708877,16.05884,149.03,149.0,6.711]
[1719941709058,16.05884,149.03,149.01,6.7109]
[1719941709260,0.84884,149.03,149.01,6.7109]
[1719941710769,0.84884,149.03,149.02,8.05257952]
[1719941711370,0.84884,149.03,149.02,6.7105]
[1719941711563,0.84884,149.03,149.01,6.7108]
[1719941713863,0.84884,149.03,149.0,23.4891]
[1719941714063,16.05884,149.03,149.0,23.4891]
[1719941715261,16.05884,149.03,149.02,6.7105]
[1719941715460,0.84884,149.03,149.02,6.7105]
[1719941720786,0.84884,149.03,149.01,6.7109]
[1719941721299,16.05884,149.03,149.01,6.7109]
[1719941721974,7.55884,149.03,148.99,6.7115]
[1719941722180,15.21,149.0,148.98,6.7118]
[1719941725579,15.21,149.0,148.97,16.7809]
[1719941725580,16.05884,149.03,148.97,16.7809]
[1719941725779,15.21,148.98,148.94,16.7845]
[1719941726085,15.21,148.98,148.96,6.7129]
[1719941726283,15.21,148.98,148.97,6.7127]
[1719941726497,15.21,148.99,148.97,6.7127]
[1719941726788,15.21,148.99,148.96,16.7827]
[1719941726789,6.7106,149.02,148.98,6.7122]
[1719941727199,15.21,149.01,148.98,6.7122]
[1719941729494,15.21,149.0,148.98,6.7122]
[1719941731490,15.21,149.01,148.98,6.7122]
[1719941732702,21.921,149.01,148.97,8.05440964]
[1719941733101,6.711,149.01,148.97,8.05440964]
[1719941733301,21.921,149.01,148.97,8.05440964]
[1719941739511,6.7114,149.0,148.97,8.05440964]
[1719941740295,6.7114,149.0,148.96,38.7058]
[1719941740501,21.9214,149.0,148.96,23.4958]
[1719941740717,78.46444,149.03,148.95,6.7135]
[1719941741051,15.21,148.98,148.95,6.7135]
[1719941741910,21.9223,148.98,148.95,6.7135]
[1719941742115,21.923,148.97,148.93,38.8236]
[1719941742325,21.923,148.97,148.93,23.4995]
[1719941742510,15.21,148.96,148.93,23.4995]
[1719941742706,15.21,148.94,148.9,16.7889]
[1719941743327,15.21,148.94,148.91,6.715]
[1719941743704,15.21,148.94,148.92,6.7149]
[1719941744908,6.7127,148.98,148.93,1.34121242]
[1719941745104,15.21,148.95,148.92,16.7868]
[1719941745494,15.21,148.95,148.93,6.7145]
[1719941746915,6.7124,148.98,148.94,6.714]
[1719941747121,15.21,148.96,148.94,6.714]
[1719941747512,15.21,148.97,148.94,6.714]
[1719941747915,15.21,148.97,148.95,6.7134]
[1719941748315,28.8813,148.99,148.95,6.7134]
[1719941748534,15.21,148.97,148.94,23.4986]
[1719941749725,21.9228,148.97,148.94,16.7847]
[1719941749937,22.1694,148.99,148.92,6.7149]
[1719941749938,15.21,148.95,148.92,6.7149]
[1719941750122,6.7133,148.96,148.92,6.7149]
[1719941750123,15.21,148.94,148.92,6.7149]
[1719941750316,15.21,148.94,148.92,8.05772367]
[1719941750518,15.21,148.94,148.91,23.5031]
[1719941751909,15.21,148.94,148.92,6.7149]
[1719941752420,15.21,148.95,148.93,6.7145]
[1719941754736,15.21,148.95,148.92,8.05770962]
[1719941755938,15.21,148.95,148.93,6.7145]
[1719941756939,15.21,148.96,148.94,6.7139]
[1719941757112,15.21,148.97,148.94,6.7139]
[1719941757313,6.7114,149.0,148.96,6.7128]
[1719941757546,15.21,148.98,148.95,23.4974]
[1719941758338,15.21,148.97,148.95,23.4974]
[1719941760440,15.21,148.98,148.96,6.7132]
[1719941760631,15.21,148.98,148.95,23.4973]
[1719941761029,15.21,148.97,148.95,23.4973]
[1719941762115,15.21,148.97,148.96,6.7132]
[1719941762817,15.21,148.98,148.96,6.7132]
[1719941766919,16.2857,149.02,148.97,16.7819]
[1719941767128,16.2857,149.02,148.99,6.7117]
[1719941767437,13.61844,149.03,148.99,6.7117]
[1719941767636,15.21,149.01,148.99,6.7117]
[1719941769326,0.84884,149.03,148.99,23.4912]
[1719941769522,0.84884,149.03,149.0,8.05331854]
[1719941769722,0.84884,149.03,149.01,6.7109]
[1719941769919,0.84884,149.03,149.02,6.7105]
[1719941770122,0.84884,149.03,149.02,8.05243841]
[1719941772244,0.84884,149.03,149.02,56.81493841]
[1719941772446,0.84884,149.03,149.02,76.81493841]
[1719941772634,0.84884,149.03,149.02,43.26243841]
[1719941776726,0.84884,149.03,149.02,23.26243841]
[1719941776928,0.84884,149.03,149.02,43.26243841]
[1719941781725,0.84884,149.03,149.02,41.9205]
[1719941782145,0.84884,149.03,148.99,15.9702]
[1719941782146,0.84884,149.03,148.99,22.6817]
[1719941782328,7.55904,149.03,148.99,15.21]
[1719941782646,22.76904,149.03,148.99,6.7118]
[1719941782838,15.21,149.01,148.98,16.7799]
[1719941783034,15.21,149.0,148.95,31.8321]
[1719941783349,15.21,149.0,148.96,6.7129]
[1719941783645,15.21,149.0,148.97,6.7127]
[1719941784227,15.21,148.98,148.95,16.7831]
[1719941784439,15.21,148.98,148.94,6.7138]
[1719941784440,15.21,148.96,148.94,6.7138]
[1719941784646,15.21,148.96,148.93,6.7145]
[1719941784937,6.7123,148.98,148.94,6.7141]
[1719941784938,15.21,148.95,148.94,6.7141]
[1719941785338,6.1126,148.99,148.95,16.7838]
[1719941785530,15.21,148.98,148.96,6.7128]
[1719941785932,15.21,148.98,148.95,23.4973]
[1719941786338,15.21,148.97,148.95,23.4973]
[1719941786535,15.21,148.96,148.94,6.7137]
[1719941786747,15.21,148.95,148.93,6.7145]
[1719941787053,6.1126,148.99,148.94,16.7849]
[1719941787242,6.1126,148.99,148.96,6.7131]
[1719941787243,15.21,148.98,148.96,6.7131]
[1719941789457,15.21,148.97,148.94,16.7849]
[1719941789755,15.21,148.96,148.95,6.7136]
[1719941789934,15.21,148.96,148.94,23.4989]
[1719941790552,6.7123,148.98,148.94,23.4989]
[1719941790847,15.21,148.95,148.94,16.7849]
[1719941791650,15.21,148.95,148.93,6.7144]
[1719941792155,15.21,148.94,148.93,6.7144]
[1719941792554,15.21,148.95,148.94,6.714]
[1719941793945,15.21,148.95,148.93,16.7861]
[1719941794558,15.21,148.95,148.93,23.5003]
[1719941794957,15.21,148.94,148.93,23.5005]
[1719941797759,15.21,148.95,148.94,6.7139]
[1719941798354,15.21,148.96,148.94,6.7139]
[1719941798544,15.21,148.95,148.94,6.7139]
[1719941802354,15.21,148.95,148.9,16.7889]
[1719941802548,6.7137,148.95,148.91,6.7152]
[1719941802752,15.21,148.92,148.87,16.7922]
[1719941802955,15.21,148.89,148.88,6.7166]
[1719941805263,6.7149,148.93,148.89,6.7161]
[1719941805457,15.21,148.9,148.89,6.7161]
[1719941806174,6.7149,148.93,148.89,6.7161]
[1719941806346,15.21,148.9,148.89,23.5069]
[1719941807370,15.21,148.9,148.86,16.7932]
[1719941807571,15.21,148.88,148.87,6.7171]
[1719941811576,15.21,148.88,148.86,23.5106]
[1719941811751,15.21,148.87,148.86,23.5106]
[1719941812163,6.7155,148.91,148.86,23.5106]
[1719941812480,15.21,148.87,148.86,23.5106]
[1719941814569,6.7155,148.91,148.87,6.7169]
[1719941814783,15.21,148.88,148.87,6.7169]
[1719941815285,15.21,148.88,148.86,23.5107]
[1719941815474,15.21,148.87,148.86,23.5107]
[1719941816673,15.21,148.87,148.8,54.654]
[1719941816878,15.21,148.85,148.83,16.7972]
[1719941817266,15.21,148.84,148.83,23.516]
[1719941819176,76.8029,148.89,148.85,6.718]
[1719941819580,15.21,148.86,148.85,6.718]
[1719941820285,15.21,148.86,148.84,6.7185]
[1719941820472,6.7168,148.88,148.84,6.7185]
[1719941820473,15.21,148.85,148.84,6.7185]
[1719941821682,83.5194,148.89,148.84,6.7185]
[1719941821683,15.21,148.86,148.84,6.7185]
[1719941825162,15.9629,148.89,148.86,6.7174]
[1719941825364,15.21,148.88,148.86,6.7174]
[1719941825578,15.21,148.88,148.86,6.7177]
[1719941825784,15.21,148.88,148.85,23.5125]
[1719941826657,6.7162,148.9,148.85,23.5125]
[1719941826862,15.21,148.89,148.86,6.7176]
[1719941827062,15.21,148.89,148.86,8.06097498]
[1719941828777,15.21,148.89,148.86,1.34337498]
[1719941828971,21.9263,148.89,148.85,23.5126]
[1719941829171,6.7163,148.89,148.85,23.5126]
[1719941829377,6.7163,148.89,148.86,6.7176]
[1719941829378,15.21,148.89,148.86,6.7176]
[1719941829986,15.21,148.89,148.85,23.5127]
[1719941830277,6.7165,148.89,148.85,23.5127]
[1719941830472,21.9265,148.89,148.85,23.5127]
[1719941831499,6.7165,148.89,148.85,23.5127]
[1719941831665,21.9265,148.89,148.85,23.5127]
[1719941832902,15.21,148.88,148.85,23.5127]
[1719941835680,15.21,148.89,148.85,23.5127]
[1719941837092,15.21,148.89,148.86,6.7176]
[1719941837793,15.21,148.89,148.85,23.5127]
[1719941837973,15.21,148.89,148.86,6.7176]
[1719941838169,6.7156,148.91,148.87,6.7169]